fUSD/lending_fUSD_20240516
["ID","MTS","AMOUNT","RATE_DAILY","PERIOD"]
[327166185,1715869849483,-207.19,0.00011079,2]
[327166186,1715869849492,-500.0,0.00011079,2]
[327166187,1715869849501,-500.0,0.00011079,2]
[327166188,1715869849511,-500.0,0.00011079,2]
[327166189,1715869849520,-500.0,0.00011079,2]
[327166190,1715869849529,-500.0,0.00011079,2]
[327166191,1715869849540,-500.0,0.00011079,2]
[327166192,1715869849549,-500.0,0.00011079,2]
[327166193,1715869849559,-505.49275151,0.00011079,2]
[327166194,1715869849568,-500.0,0.00011079,2]
[327166195,1715869849577,-500.0,0.00011079,2]
[327166196,1715869849587,-500.0,0.00011079,2]
[327166197,1715869849596,-500.0,0.00011079,2]
[327166198,1715869849605,-500.0,0.00011079,2]
[327166199,1715869849615,-498.16594626,0.00011079,2]
[327166200,1715869849624,-614.73,0.00011079,2]
[327166201,1715869849633,-506.44543872,0.00011079,2]
[327166202,1715869849642,-500.0,0.00011079,2]
[327166203,1715869849651,-500.0,0.00011079,2]
[327166204,1715869849661,-500.0,0.00011079,2]
[327166205,1715869849671,-500.0,0.00011079,2]
[327166206,1715869849680,-500.0,0.00011079,2]
[327166207,1715869849690,-500.0,0.00011079,2]
[327166208,1715869849699,-500.0,0.00011079,2]
[327166209,1715869849709,-500.0,0.00011079,2]
[327166210,1715869849718,-500.0,0.00011079,2]
[327166211,1715869849728,-500.0,0.00011079,2]
[327166212,1715869849738,-500.0,0.00011079,2]
[327166213,1715869849748,-500.0,0.00011079,2]
[327166214,1715869849757,-500.0,0.00011079,2]
[327166215,1715869849767,-500.0,0.00011079,2]
[327166216,1715869849776,-533.88,0.00011079,2]
[327166217,1715869849785,-500.0,0.00011079,2]
[327166218,1715869849795,-500.0,0.00011079,2]
[327166219,1715869849804,-500.0,0.00011079,2]
[327166220,1715869849814,-500.0,0.00011079,2]
[327166221,1715869849823,-500.0,0.00011079,2]
[327166222,1715869849833,-500.0,0.00011079,2]
[327166223,1715869849843,-541.63,0.00011079,2]
[327166224,1715869849853,-505.64656316,0.00011079,2]
[327166225,1715869849862,-500.0,0.00011079,2]
[327166226,1715869849871,-192.72172056,0.00011079,2]
[327166227,1715869849881,-400.0,0.00011079,2]
[327166228,1715869849890,-605.54,0.00011079,2]
[327166229,1715869849899,-500.0,0.00011079,2]
[327166230,1715869849909,-328.35,0.00011079,2]
[327166231,1715869849919,-500.0,0.00011079,2]
[327166232,1715869849928,-516.51717634,0.00011079,2]
[327166233,1715869849937,-552.27,0.00011079,2]
[327166234,1715869849947,-500.0,0.00011079,2]
[327166235,1715869849956,-500.0,0.00011079,2]
[327166236,1715869849965,-629.63,0.00011079,2]
[327166237,1715869849975,-500.0,0.00011079,2]
[327166238,1715869849986,-503.50914012,0.00011079,2]
[327166239,1715869849996,-151.0,0.00011079,2]
[327166240,1715869850005,-153.184176,0.00011079,2]
[327166241,1715869850014,-500.0,0.00011079,2]
[327166242,1715869850023,-500.0,0.00011079,2]
[327166243,1715869850032,-533.90237245,0.00011079,2]
[327166244,1715869850042,-359.0919884,0.00011079,2]
[327166245,1715869850051,-157.58630395,0.00011079,2]
[327166246,1715869850060,-500.0,0.00011079,2]
[327166247,1715869850069,-500.0,0.00011079,2]
[327166248,1715869850079,-500.0,0.00011079,2]
[327166249,1715869850087,-500.0,0.00011079,2]
[327166250,1715869850096,-500.0,0.00011079,2]
[327166251,1715869850105,-500.0,0.00011079,2]
[327166252,1715869850115,-504.31217234,0.00011079,2]
[327166253,1715869850124,-500.0,0.00011079,2]
[327166254,1715869850133,-598.30534056,0.00011079,2]
[327166255,1715869850143,-500.0,0.00011079,2]
[327166256,1715869850153,-280.95500541,0.00011079,2]
[327166257,1715869850162,-505.96807435,0.00011079,2]
[327166258,1715869850172,-500.0,0.00011079,2]
[327166259,1715869850181,-500.0,0.00011079,2]
[327166260,1715869850191,-500.0,0.00011079,2]
[327166261,1715869850200,-500.0,0.00011079,2]
[327166262,1715869850210,-500.0,0.00011079,2]
[327166263,1715869850219,-326.02,0.00011079,2]
[327166264,1715869850235,-500.0,0.00011079,2]
[327166265,1715869850244,-500.0,0.00011079,2]
[327166266,1715869850253,-500.0,0.00011079,2]
[327166267,1715869850265,-424.39,0.00011079,2]
[327166268,1715869850275,-500.0,0.00011079,2]
[327166269,1715869850284,-500.0,0.00011079,2]
[327166270,1715869850293,-500.0,0.00011079,2]
[327166271,1715869850304,-500.0,0.00011079,2]
[327166272,1715869850313,-359.18,0.00011079,2]
[327166273,1715869850326,-500.0,0.00011079,2]
[327166274,1715869850335,-500.0,0.00011079,2]
[327166275,1715869850345,-500.0,0.00011079,2]
[327166276,1715869850355,-500.0,0.00011079,2]
[327166277,1715869850364,-500.0,0.00011079,2]
[327166278,1715869850374,-500.0,0.00011079,2]
[327166279,1715869850383,-500.0,0.00011079,2]
[327166280,1715869850392,-500.0,0.00011079,2]
[327166281,1715869850401,-500.0,0.00011079,2]
[327166282,1715869850411,-500.0,0.00011079,2]
[327166283,1715869850420,-500.0,0.00011079,2]
[327166284,1715869850429,-500.0,0.00011079,2]
[327166285,1715869850438,-500.0,0.00011079,2]
[327166286,1715869850447,-195.99639431,0.00011079,2]
[327166287,1715869850457,-500.0,0.00011079,2]
[327166288,1715869850466,-500.0,0.00011079,2]
[327166289,1715869850475,-500.0,0.00011079,2]
[327166290,1715869850488,-500.0,0.00011079,2]
[327166291,1715869850497,-500.0,0.00011079,2]
[327166292,1715869850507,-557.14,0.00011079,2]
[327166293,1715869850516,-151.0,0.00011079,2]
[327166294,1715869850525,-275.47753,0.00011079,2]
[327166295,1715869850535,-961.12,0.00011079,2]
[327166296,1715869850544,-961.12,0.00011079,2]
[327166297,1715869850553,-961.12,0.00011079,2]
[327166298,1715869850563,-961.12,0.00011079,2]
[327166299,1715869850572,-961.12,0.00011079,2]
[327166300,1715869850583,-961.12,0.00011079,2]
[327166301,1715869850592,-961.12,0.00011079,2]
[327166302,1715869850602,-961.12,0.00011079,2]
[327166303,1715869850611,-961.12,0.00011079,2]
[327166304,1715869850620,-961.12,0.00011079,2]
[327166305,1715869850629,-961.12,0.00011079,2]
[327166306,1715869850638,-961.12,0.00011079,2]
[327166307,1715869850648,-961.12,0.00011079,2]
[327166308,1715869850657,-961.12,0.00011079,2]
[327166309,1715869850667,-961.12,0.00011079,2]
[327166310,1715869850676,-961.12,0.00011079,2]
[327166311,1715869850685,-961.12,0.00011079,2]
[327166312,1715869850694,-961.12,0.00011079,2]
[327166313,1715869850703,-961.12,0.00011079,2]
[327166314,1715869850712,-961.12,0.00011079,2]
[327166315,1715869850721,-961.34,0.00011079,2]
[327166316,1715869850731,-503.47384848,0.00011079,2]
[327166317,1715869850740,-500.0,0.00011079,2]
[327166318,1715869850749,-396.08,0.00011079,2]
[327166319,1715869850759,-500.0,0.00011079,2]
[327166320,1715869850768,-500.0,0.00011079,2]
[327166321,1715869850778,-151.0,0.00011079,2]
[327166322,1715869850787,-372.897434,0.00011079,2]
[327166323,1715869850796,-372.897434,0.00011079,2]
[327166324,1715869850806,-500.0,0.00011079,2]
[327166325,1715869850815,-500.0,0.00011079,2]
[327166326,1715869850824,-174.15,0.00011079,2]
[327166327,1715869850834,-151.0,0.00011079,2]
[327166328,1715869850843,-500.0,0.00011079,2]
[327166329,1715869850853,-500.0,0.00011079,2]
[327166330,1715869850862,-626.36,0.00011079,2]
[327166331,1715869850872,-505.17160926,0.00011079,2]
[327166332,1715869850881,-500.0,0.00011079,2]
[327166333,1715869850890,-500.0,0.00011079,2]
[327166334,1715869850899,-500.0,0.00011079,2]
[327166335,1715869850908,-500.0,0.00011079,2]
[327166336,1715869850918,-500.0,0.00011079,2]
[327166337,1715869850927,-500.0,0.00011079,2]
[327166338,1715869850937,-500.0,0.00011079,2]
[327166339,1715869850946,-500.0,0.00011079,2]
[327166340,1715869850956,-500.0,0.00011079,2]
[327166341,1715869850965,-500.0,0.00011079,2]
[327166342,1715869850975,-500.0,0.00011079,2]
[327166343,1715869850985,-500.0,0.00011079,2]
[327166344,1715869850994,-500.0,0.00011079,2]
[327166345,1715869851004,-610.32,0.00011079,2]
[327166346,1715869851013,-520.6257289,0.00011079,2]
[327166347,1715869851023,-151.0,0.00011079,2]
[327166348,1715869851032,-151.0,0.00011079,2]
[327166349,1715869851042,-151.0,0.00011079,2]
[327166350,1715869851052,-151.0,0.00011079,2]
[327166351,1715869851061,-151.0,0.00011079,2]
[327166352,1715869851070,-151.0,0.00011079,2]
[327166353,1715869851080,-151.0,0.00011079,2]
[327166354,1715869851090,-151.0,0.00011079,2]
[327166355,1715869851099,-500.0,0.00011079,2]
[327166356,1715869851110,-500.0,0.00011079,2]
[327166357,1715869851119,-500.0,0.00011079,2]
[327166358,1715869851130,-500.0,0.00011079,2]
[327166359,1715869851140,-500.0,0.00011079,2]
[327166360,1715869851149,-500.0,0.00011079,2]
[327166361,1715869851158,-357.25,0.00011079,2]
[327166362,1715869851168,-199.44,0.00011079,2]
[327166363,1715869851178,-500.0,0.00011079,2]
[327166364,1715869851188,-151.0,0.00011079,2]
[327166365,1715869851197,-500.0,0.00011079,2]
[327166366,1715869851207,-151.0,0.00011079,2]
[327166367,1715869851219,-203.2814,0.00011079,2]
[327166368,1715869851228,-238.284638,0.00011079,2]
[327166369,1715869851238,-151.0,0.00011079,2]
[327166370,1715869851248,-500.0,0.00011079,2]
[327166371,1715869851258,-500.0,0.00011079,2]
[327166372,1715869851268,-500.0,0.00011079,2]
[327166373,1715869851280,-439.12,0.00011079,2]
[327166374,1715869851289,-151.0,0.00011079,2]
[327166375,1715869851303,-182.392427,0.00011079,2]
[327166376,1715869851315,-500.0,0.00011079,2]
[327166377,1715869851326,-500.0,0.00011079,2]
[327166378,1715869851337,-500.0,0.00011079,2]
[327166379,1715869851347,-500.0,0.00011079,2]
[327166380,1715869851357,-500.0,0.00011079,2]
[327166381,1715869851367,-500.0,0.00011079,2]
[327166382,1715869851377,-500.0,0.00011079,2]
[327166383,1715869851386,-500.0,0.00011079,2]
[327166384,1715869851396,-546.7,0.00011079,2]
[327166385,1715869851409,-151.0,0.00011079,2]
[327166386,1715869851423,-151.0,0.00011079,2]
[327166387,1715869851435,-500.0,0.00011079,2]
[327166388,1715869851449,-500.0,0.00011079,2]
[327166389,1715869851461,-500.0,0.00011079,2]
[327166390,1715869851472,-500.0,0.00011079,2]
[327166391,1715869851485,-433.0,0.00011079,2]
[327166392,1715869851496,-151.0,0.00011079,2]
[327166393,1715869851508,-500.0,0.00011079,2]
[327166394,1715869851521,-500.0,0.00011079,2]
[327166395,1715869851534,-600.59,0.00011079,2]
[327166396,1715869851548,-151.0,0.00011079,2]
[327166397,1715869851563,-500.0,0.00011079,2]
[327166398,1715869851575,-500.0,0.00011079,2]
[327166399,1715869851587,-220.15098877,0.00011079,2]
[327166400,1715869851603,-500.0,0.00011079,2]
[327166401,1715869851616,-500.0,0.00011079,2]
[327166402,1715869851628,-151.0,0.00011079,2]
[327166403,1715869851639,-500.0,0.00011079,2]
[327166404,1715869851650,-569.15,0.00011079,2]
[327166405,1715869851662,-500.0,0.00011079,2]
[327166406,1715869851673,-500.0,0.00011079,2]
[327166407,1715869851685,-500.0,0.00011079,2]
[327166408,1715869851698,-500.0,0.00011079,2]
[327166409,1715869851709,-500.0,0.00011079,2]
[327166410,1715869851721,-500.0,0.00011079,2]
[327166411,1715869851733,-500.0,0.00011079,2]
[327166412,1715869851743,-500.0,0.00011079,2]
[327166413,1715869851753,-192.25,0.00011079,2]
[327166414,1715869851765,-500.0,0.00011079,2]
[327166415,1715869851775,-241.24,0.00011079,2]
[327166416,1715869851787,-500.0,0.00011079,2]
[327166417,1715869851798,-500.0,0.00011079,2]
[327166418,1715869851810,-500.0,0.00011079,2]
[327166419,1715869851822,-154.68292259,0.00011079,2]
[327166420,1715869851833,-500.0,0.00011079,2]
[327166421,1715869851845,-500.0,0.00011079,2]
[327166422,1715869851858,-500.0,0.00011079,2]
[327166423,1715869851870,-500.0,0.00011079,2]
[327166424,1715869851882,-526.2,0.00011079,2]
[327166425,1715869851893,-500.0,0.00011079,2]
[327166426,1715869851903,-500.0,0.00011079,2]
[327166427,1715869851913,-151.0,0.00011079,2]
[327166428,1715869851923,-505.12,0.00011079,2]
[327166429,1715869851934,-535.86,0.00011079,2]
[327166430,1715869851945,-276.76,0.00011079,2]
[327166431,1715869851957,-500.0,0.00011079,2]
[327166432,1715869851968,-500.0,0.00011079,2]
[327166433,1715869851983,-500.0,0.00011079,2]
[327166434,1715869851993,-500.0,0.00011079,2]
[327166435,1715869852004,-500.0,0.00011079,2]
[327166436,1715869852014,-500.0,0.00011079,2]
[327166437,1715869852024,-500.0,0.00011079,2]
[327166438,1715869852035,-500.0,0.00011079,2]
[327166439,1715869852048,-500.0,0.00011079,2]
[327166440,1715869852059,-500.0,0.00011079,2]
[327166441,1715869852070,-180.58,0.00011079,2]
[327166442,1715869852081,-304.6,0.00011079,2]
[327166443,1715869852091,-200.904174,0.00011079,2]
[327166444,1715869852101,-500.0,0.00011079,2]
[327166445,1715869852112,-336.22483264,0.00011079,2]
[327166446,1715869852131,-163.77516736,0.00011079,2]
[327166447,1715869852142,-500.0,0.00011079,2]
[327166448,1715869852153,-500.0,0.00011079,2]
[327166449,1715869852163,-400.74763264,0.00011079,2]
[327166450,1715869852176,-99.25236736,0.00011079,2]
[327166451,1715869852186,-500.0,0.00011079,2]
[327166452,1715869852197,-256.24,0.00011079,2]
[327166453,1715869852207,-297.76,0.00011079,2]
[327166454,1715869852218,-151.0,0.00011079,2]
[327166455,1715869852235,-178.54763265,0.00011079,2]
[327166456,1715869852250,-321.45236735,0.00011079,2]
[327166457,1715869852260,-500.0,0.00011079,2]
[327166458,1715869852271,-170.14806008,0.00011079,2]
[327166459,1715869852285,-329.85193992,0.00011079,2]
[327166460,1715869852295,-500.0,0.00011079,2]
[327166461,1715869852309,-455.64,0.00011079,2]
[327166462,1715869852319,-151.0,0.00011079,2]
[327166463,1715869852330,-500.0,0.00011079,2]
[327166464,1715869852341,-133.50806008,0.00011079,2]
[327166465,1715869852354,-17.49193992,0.00011079,2]
[327166466,1715869852366,-419.04513556,0.00011079,2]
[327166469,1715870112825,-4000.0,9.996e-05,2]
[327166470,1715870113475,-1272.17642688,9.996e-05,2]
[327166471,1715870113498,-782.3604175,9.996e-05,2]
[327166472,1715870157694,158.47352896,9.973e-05,2]
[327166473,1715870208494,217.29472164,9.996e-05,2]
[327166474,1715870215682,155.0,9.996e-05,2]
[327166475,1715870251492,1414.69490502,9.996e-05,2]
[327166476,1715870251514,3040.68197235,9.996e-05,2]
[327166477,1715870316241,250.0,9.876e-05,2]
[327166478,1715870316829,174.89,9.913e-05,2]
[327166479,1715870335731,250.0,9.966e-05,2]
[327166480,1715870364312,284.42802765,9.996e-05,2]
[327166481,1715870364337,497.93238985,9.996e-05,2]
[327166482,1715870376516,3502.06761015,9.996e-05,2]
[327166483,1715870376539,1770.10881673,9.996e-05,2]
[327166484,1715870435559,883.0724361,9.996e-05,2]
[327166485,1715870577829,782.3604175,9.996e-05,2]
[327166486,1715870675778,564.45832967,9.996e-05,2]
[327166487,1715870675800,4000.0,9.996e-05,2]
[327166488,1715870675821,3068.57371285,9.996e-05,2]
[327166489,1715870714932,152.34,8.219e-05,2]
[327166493,1715870735047,779.08628715,9.996e-05,2]
[327166494,1715870735070,264.10853046,9.996e-05,2]
[327166496,1715870758527,2366.5345,9.897e-05,2]
[327166497,1715870760124,1369.35696954,9.996e-05,2]
[327166498,1715870760148,1555.30782743,9.996e-05,2]
[327166499,1715870830464,250.0,9.95e-05,2]
[327166500,1715870856302,231.7,9.95e-05,2]
[327166506,1715870985071,787.93819586,9.996e-05,2]
[327166507,1715870992266,1175.05397671,9.897e-05,2]
[327166508,1715870992288,2292.67822329,9.897e-05,2]
[327166509,1715871003345,972.15,9.98e-05,2]
[327166510,1715871027195,735.17177671,9.996e-05,2]
[327166511,1715871027220,3540.66984812,9.996e-05,2]
[327166512,1715871032431,-1195.53907704,9.997e-05,2]
[327166528,1715871033244,-2193.07254094,9.997e-05,2]
[327166529,1715871033258,-31962.07199437,9.997e-05,2]
[327166530,1715871033268,-180.17423478,0.0001,2]
[327166531,1715871033280,-804.43551989,0.0001,3]
[327166532,1715871033290,-240.0,0.00010039,2]
[327166533,1715871033300,-760.0,0.00010072,2]
[327166534,1715871033310,-158.47352896,0.00010224,2]
[327166535,1715871033320,-150.0,0.00010438,2]
[327166536,1715871033330,-158.47352896,0.00010475,2]
[327166537,1715871033340,-868.47,0.000105,2]
[327166538,1715871033349,-3989.77617637,0.000105,2]
[327166552,1715871038629,-428.21382363,0.000105,2]
[327166553,1715871038640,-1527.20049393,0.00010522,7]
[327166554,1715871038650,-70.33586375,0.00010726,2]
[327166555,1715871038662,-88.13766521,0.00010726,2]
[327166556,1715871038672,-1563.60941232,0.00010837,2]
[327166557,1715871038682,-1737.9,0.00010849,2]
[327166558,1715871038693,-419.04,0.00010849,2]
[327166559,1715871038704,-868.95,0.00010849,2]
[327166560,1715871038715,-833.5722,0.000109,2]
[327166561,1715871038725,-150.0,0.00010911,2]
[327166562,1715871038735,-150.0,0.00010942,2]
[327166563,1715871038746,-158.47352896,0.00010977,2]
[327166564,1715871038756,-1835.09320038,0.00010979,2]
[327166565,1715871038917,-12662.05437211,0.00010979,2]
[327166567,1715871038927,-228.59390672,0.0001098,2]
[327166569,1715871038936,-150.0,0.00010986,2]
[327166570,1715871038946,-150.0,0.00010986,2]
[327166571,1715871038955,-190.82,0.00010986,2]
[327166572,1715871038964,-300.0,0.00010986,2]
[327166573,1715871038975,-1000.0,0.00010991,2]
[327166574,1715871038986,-500.0,0.00010991,2]
[327166575,1715871038995,-55256.42121665,0.00011,2]
[327166576,1715871039005,-300.0,0.00011,2]
[327166577,1715871039016,-105783.51012077,0.00011,5]
[327166578,1715871039025,-500.0,0.00011039,2]
[327166579,1715871039035,-500.0,0.00011039,2]
[327166580,1715871039045,-500.0,0.00011039,2]
[327166581,1715871039054,-500.0,0.00011039,2]
[327166582,1715871039063,-500.0,0.00011039,2]
[327166583,1715871039072,-500.0,0.00011039,2]
[327166584,1715871039082,-500.0,0.00011039,2]
[327166585,1715871039091,-500.0,0.00011039,2]
[327166586,1715871039101,-500.0,0.00011039,2]
[327166587,1715871039110,-500.0,0.00011039,2]
[327166588,1715871039120,-500.0,0.00011039,2]
[327166589,1715871039130,-25943.75044866,0.0001104,2]
[327166594,1715871040626,-409.57557879,0.0001,2]
[327166597,1715871040636,-531.09995873,0.0001104,2]
[327166599,1715871040649,-256.89893274,0.0001104,2]
[327166601,1715871040662,-5206.01569444,0.0001104,2]
[327166603,1715871040672,-150.0,0.00011056,2]
[327166605,1715871040682,-1516.96750069,0.00011068,2]
[327166606,1715871040693,-1382.0,0.00011068,2]
[327166607,1715871040702,-463.93419015,0.00011074,2]
[327166608,1715871040712,-500.0,0.00011074,2]
[327166609,1715871040723,-500.0,0.00011074,2]
[327166610,1715871040732,-500.0,0.00011074,2]
[327166611,1715871040961,-500.0,0.00011074,2]
[327166612,1715871040971,-500.0,0.00011074,2]
[327166613,1715871040981,-500.0,0.00011074,2]
[327166614,1715871040990,-500.0,0.00011074,2]
[327166615,1715871041000,-500.0,0.00011074,2]
[327166616,1715871041010,-500.0,0.00011074,2]
[327166617,1715871041020,-500.0,0.00011074,2]
[327166618,1715871041030,-500.0,0.00011074,2]
[327166619,1715871041039,-500.0,0.00011074,2]
[327166620,1715871041049,-500.0,0.00011074,2]
[327166621,1715871041058,-500.0,0.00011074,2]
[327166622,1715871041068,-500.0,0.00011074,2]
[327166623,1715871041078,-500.0,0.00011074,2]
[327166624,1715871041087,-500.0,0.00011074,2]
[327166625,1715871041096,-500.0,0.00011074,2]
[327166626,1715871041106,-500.0,0.00011074,2]
[327166627,1715871041115,-500.0,0.00011074,2]
[327166628,1715871041125,-500.0,0.00011074,2]
[327166629,1715871041134,-500.0,0.00011074,2]
[327166630,1715871041144,-500.0,0.00011074,2]
[327166631,1715871041154,-500.0,0.00011074,2]
[327166632,1715871041164,-500.0,0.00011074,2]
[327166633,1715871041173,-500.0,0.00011074,2]
[327166634,1715871041183,-500.0,0.00011074,2]
[327166636,1715871041192,-500.0,0.00011074,2]
[327166637,1715871041201,-500.0,0.00011074,2]
[327166638,1715871041211,-500.0,0.00011074,2]
[327166639,1715871041221,-500.0,0.00011074,2]
[327166640,1715871041230,-500.0,0.00011074,2]
[327166641,1715871041240,-150.0,0.00011074,2]
[327166642,1715871041250,-500.0,0.00011074,2]
[327166643,1715871041261,-545.3,0.00011074,2]
[327166644,1715871041271,-500.0,0.00011074,2]
[327166646,1715871041281,-635.96489486,0.00011074,2]
[327166647,1715871041291,-500.0,0.00011074,2]
[327166648,1715871041301,-989.24,0.00011074,2]
[327166649,1715871041310,-500.0,0.00011074,2]
[327166650,1715871041320,-500.0,0.00011074,2]
[327166651,1715871041329,-628.27056663,0.00011074,2]
[327166652,1715871041339,-500.0,0.00011074,2]
[327166653,1715871041349,-500.0,0.00011074,2]
[327166654,1715871041358,-500.0,0.00011074,2]
[327166655,1715871041367,-500.0,0.00011074,2]
[327166657,1715871041377,-500.0,0.00011074,2]
[327166658,1715871041386,-500.0,0.00011074,2]
[327166659,1715871041396,-512.78,0.00011074,2]
[327166660,1715871041405,-500.0,0.00011074,2]
[327166661,1715871041414,-500.0,0.00011074,2]
[327166662,1715871041423,-500.0,0.00011074,2]
[327166663,1715871041433,-500.0,0.00011074,2]
[327166664,1715871041443,-500.0,0.00011074,2]
[327166665,1715871041452,-500.0,0.00011074,2]
[327166666,1715871041461,-500.0,0.00011074,2]
[327166667,1715871041470,-537.37856684,0.00011074,2]
[327166668,1715871041480,-500.0,0.00011074,2]
[327166669,1715871041489,-500.0,0.00011074,2]
[327166670,1715871041498,-500.0,0.00011074,2]
[327166671,1715871041507,-500.0,0.00011074,2]
[327166672,1715871041520,-500.0,0.00011074,2]
[327166673,1715871041530,-500.0,0.00011074,2]
[327166674,1715871041539,-553.9912692,0.00011074,2]
[327166675,1715871041547,-500.0,0.00011074,2]
[327166676,1715871041557,-500.0,0.00011074,2]
[327166677,1715871041566,-500.0,0.00011074,2]
[327166678,1715871041575,-500.0,0.00011074,2]
[327166679,1715871041584,-500.0,0.00011074,2]
[327166680,1715871041594,-500.0,0.00011074,2]
[327166681,1715871041608,-500.0,0.00011074,2]
[327166682,1715871041617,-500.0,0.00011074,2]
[327166683,1715871041626,-500.0,0.00011074,2]
[327166684,1715871041635,-500.0,0.00011074,2]
[327166685,1715871041645,-500.0,0.00011074,2]
[327166686,1715871041654,-500.0,0.00011074,2]
[327166687,1715871041664,-500.0,0.00011074,2]
[327166688,1715871041673,-500.0,0.00011074,2]
[327166689,1715871041685,-500.0,0.00011074,2]
[327166690,1715871041694,-500.0,0.00011074,2]
[327166691,1715871041703,-500.0,0.00011074,2]
[327166692,1715871041713,-500.0,0.00011074,2]
[327166693,1715871041722,-500.0,0.00011074,2]
[327166694,1715871041732,-500.0,0.00011074,2]
[327166695,1715871041742,-500.0,0.00011074,2]
[327166696,1715871041751,-500.0,0.00011074,2]
[327166697,1715871041762,-500.0,0.00011074,2]
[327166698,1715871041772,-500.0,0.00011074,2]
[327166699,1715871041781,-500.0,0.00011074,2]
[327166700,1715871041791,-500.0,0.00011074,2]
[327166701,1715871041801,-500.0,0.00011074,2]
[327166702,1715871041810,-500.0,0.00011074,2]
[327166703,1715871041819,-500.0,0.00011074,2]
[327166704,1715871041828,-500.0,0.00011074,2]
[327166705,1715871041838,-565.67,0.00011074,2]
[327166706,1715871041847,-500.0,0.00011074,2]
[327166707,1715871041857,-500.0,0.00011074,2]
[327166708,1715871041868,-500.0,0.00011074,2]
[327166709,1715871041879,-500.0,0.00011074,2]
[327166710,1715871041888,-508.68020297,0.00011074,2]
[327166711,1715871041899,-500.0,0.00011074,2]
[327166712,1715871041908,-500.0,0.00011074,2]
[327166713,1715871041918,-500.0,0.00011074,2]
[327166714,1715871041927,-500.0,0.00011074,2]
[327166715,1715871041938,-500.0,0.00011074,2]
[327166716,1715871041947,-500.0,0.00011074,2]
[327166717,1715871041956,-500.0,0.00011074,2]
[327166718,1715871041965,-500.0,0.00011074,2]
[327166719,1715871041975,-500.0,0.00011074,2]
[327166720,1715871041983,-500.0,0.00011074,2]
[327166721,1715871041992,-500.0,0.00011074,2]
[327166722,1715871042002,-547.36,0.00011074,2]
[327166723,1715871042012,-500.0,0.00011074,2]
[327166724,1715871042021,-500.0,0.00011074,2]
[327166725,1715871042031,-500.0,0.00011074,2]
[327166726,1715871042041,-618.42,0.00011074,2]
[327166727,1715871042050,-500.0,0.00011074,2]
[327166728,1715871042059,-500.0,0.00011074,2]
[327166729,1715871042069,-500.0,0.00011074,2]
[327166730,1715871042078,-500.0,0.00011074,2]
[327166731,1715871042087,-500.0,0.00011074,2]
[327166732,1715871042097,-500.0,0.00011074,2]
[327166733,1715871042106,-500.0,0.00011074,2]
[327166734,1715871042116,-500.0,0.00011074,2]
[327166735,1715871042125,-500.0,0.00011074,2]
[327166736,1715871042134,-514.77,0.00011074,2]
[327166737,1715871042143,-500.0,0.00011074,2]
[327166738,1715871042153,-1168.77,0.00011074,2]